fUSD/lending_fUSD_20241114
["ID","MTS","AMOUNT","RATE_DAILY","PERIOD"]
[342184704,1731564638398,-17083.52305483,0.0001,2]
[342184705,1731564638411,-2295.0,0.0001,2]
[342184706,1731564638422,-2676.54331297,0.0001,2]
[342184707,1731564638500,-521.74533198,0.0001,2]
[342184708,1731564638548,-27571580.6987212,0.0001,2]
[342184714,1731564640197,-606.199999,0.0001,2]
[342184718,1731564640315,-556.34888815,0.0001,2]
[342184719,1731564640497,-1775.8790501,0.0001,2]
[342184742,1731564643223,-16092.4999999,0.0001,2]
[342184743,1731564643381,-9023.99147451,0.0001,2]
[342184744,1731564643392,-177980.25011147,0.0001,2]
[342184745,1731564643403,-1417.31362859,0.0001,2]
[342184746,1731564643419,-5009.75388417,0.0001,2]
[342184747,1731564643430,-3719.46457848,0.0001,2]
[342184807,1731564646998,-20455.02384364,0.0001,2]
[342184808,1731564647010,-1683.42352676,0.0001,2]
[342184809,1731564647027,-2005.77408353,0.0001,2]
[342184810,1731564647038,-9611.52081995,0.0001,2]
[342184811,1731564647059,-1001.03546443,0.0001,2]
[342184812,1731564647071,-3444.88671362,0.0001,2]
[342184813,1731564647082,-11127.84921093,0.0001,2]
[342184814,1731564647093,-4497.170691,0.0001,2]
[342184816,1731564794350,2273.18,8.219e-05,2]
[342184817,1731564952338,100000.0,0.0002,90]
[342184818,1731564969653,58956.41828666,0.0002002,90]
[342184819,1731564969678,22000.0,0.0002002,90]
[342184820,1731565039405,-297.7,9.023e-05,2]
[342184821,1731565039429,-171.23,9.034e-05,2]
[342184822,1731565039452,-160.0,9.04e-05,2]
[342184823,1731565039473,-200.0,9.043e-05,2]
[342184824,1731565039494,-638.47,9.052e-05,2]
[342184825,1731565039515,-250.0,9.074e-05,2]
[342184826,1731565039535,-171.23,9.079e-05,2]
[342184827,1731565039557,-150.0,9.283e-05,2]
[342184828,1731565039577,-165.28,9.285e-05,2]
[342184829,1731565039599,-250.0,9.302e-05,2]
[342184830,1731565064721,50000.0,0.000175,30]
[342184831,1731565090212,50000.0,0.000177,30]
[342184832,1731565096048,50000.0,0.000178,30]
[342184833,1731565100605,31791.94323752,0.000179,30]
[342184834,1731565100629,7500.0,0.000179,30]
[342184835,1731565100653,10708.05676248,0.000179,30]
[342184836,1731565182615,-150.0,9.257e-05,2]
[342184837,1731565258746,-850.0,9.257e-05,2]
[342184839,1731565295004,-300.0,9.259e-05,2]
[342184840,1731565295030,-700.0,9.26e-05,2]
[342184843,1731565556139,900.0,6.94e-05,2]
[342184844,1731565577671,2159.52,8.219e-05,2]
[342184845,1731565588791,671.0,0.000165,50]
[342184846,1731565622572,-150.0,8.999e-05,2]
[342184850,1731565753572,20000.0,8.5e-05,2]
[342184851,1731565765771,42074.01883482,8.5e-05,2]
[342184861,1731565831543,-300.0,7.999e-05,2]
[342184862,1731565831553,-32404.0,8e-05,2]
[342184863,1731565831567,-7925.98116518,8.5e-05,2]
[342184864,1731565831578,-420.0,8.799e-05,2]
[342184865,1731565831587,-1000.0,8.803e-05,2]
[342184866,1731565831596,-250.0,8.99e-05,2]
[342184867,1731565831607,-150.0,8.999e-05,2]
[342184868,1731565831617,-302.01757791,9e-05,2]
[342184869,1731565831627,-9352.46136271,9e-05,2]
[342184870,1731565831637,-9654.47894062,9e-05,2]
[342184871,1731565831648,-171.23,9.025e-05,2]
[342184872,1731565831658,-638.47,9.031e-05,2]
[342184873,1731565831668,-200.0,9.034e-05,2]
[342184874,1731565831677,-171.23,9.07e-05,2]
[342184875,1731565831693,-164.88,9.237e-05,2]
[342184876,1731565831703,-23200.0,9.26e-05,2]
[342184877,1731565831713,-250.0,9.31e-05,2]
[342184878,1731565831724,-167.46,9.518e-05,2]
[342184879,1731565831734,-587.0,9.679e-05,2]
[342184880,1731565831744,-1000.0,9.89e-05,2]
[342184881,1731565831754,-255.0,9.899e-05,2]
[342184882,1731565831764,-200.0,9.9e-05,2]
[342184883,1731565831774,-1000.0,9.9e-05,2]
[342184884,1731565831784,-1103.34044475,9.9e-05,2]
[342184885,1731565831794,-1103.34044476,9.9e-05,2]
[342184886,1731565831803,-1250.9515,9.9e-05,2]
[342184887,1731565831813,-1000.0,9.904e-05,2]
[342184888,1731565831823,-1000.0,9.918e-05,2]
[342184889,1731565831833,-1000.0,9.945e-05,2]
[342184890,1731565831843,-1000.0,9.973e-05,2]
[342184891,1731565831853,-1629.5774679,9.991e-05,2]
[342184892,1731565831862,-2064.1314594,9.993e-05,2]
[342184893,1731565831873,-2498.6854508,9.993e-05,2]
[342184894,1731565831883,-2933.2394423,9.993e-05,2]
[342184895,1731565831893,-3367.7934337,9.993e-05,2]
[342184896,1731565831904,-261.68533993,9.999e-05,2]
[342184897,1731565831914,-13250.90820439,9.999e-05,2]
[342184898,1731565831923,-9233.26392596,9.999e-05,2]
[342184899,1731565831936,-58799.99999941,9.999e-05,2]
[342184900,1731565831950,-32573.16607463,9.999e-05,2]
[342184901,1731565831960,-8254.99852149,9.999e-05,2]
[342184902,1731565831971,-77234.12685988,0.0001,2]
[342184903,1731565831983,-9212.35940975,0.0001,2]
[342184904,1731565831995,-61480.76495762,0.0001,2]
[342184908,1731565832083,-200.0,8.753e-05,2]
[342184909,1731565832094,-16999.10754427,0.0001,2]
[342184914,1731565837511,-9701.61933,0.0001,2]
[342184915,1731565837541,-91845.55308223,0.0001,2]
[342184916,1731565837577,-6898.00696325,0.0001,2]
[342184917,1731565837591,-5835.78829024,0.0001,2]
[342184918,1731565837602,-3248.20449063,0.0001,2]
[342184919,1731565837617,-503.598,0.0001,2]
[342184920,1731565837629,-542.92,0.0001,2]
[342184921,1731565837724,-266.39858554,0.0001,2]
[342184922,1731565837758,-90180.0,0.0001,2]
[342184923,1731565837770,-27845491.1175158,0.0001,2]
[342184926,1731565839446,-3724.44,0.0001,2]
[342184927,1731565839487,-1537.9145028,0.0001,2]
[342184928,1731565839500,-2482.56322458,0.0001,2]
[342184929,1731565839512,-16512.6387972,0.0001,2]
[342184930,1731565839524,-1804.11790641,0.0001,2]
[342184931,1731565839535,-626.9,0.0001,2]
[342184932,1731565839547,-439.54000004,0.0001,2]
[342184933,1731565839558,-421.84499995,0.0001,2]
[342184934,1731565839575,-263.975,0.0001,2]
[342184935,1731565839638,-1203.548977,0.0001,2]
[342184936,1731565839651,-548.56706646,0.0001,2]
[342184937,1731565839676,-9163.02307383,0.0001,2]
[342184938,1731565842516,-261.68533993,9.999e-05,2]
[342184939,1731565842526,-5035.93115598,0.0001,2]
[342184940,1731565842538,-1610.87918864,0.0001,2]
[342184941,1731565842550,-4794.08682635,0.0001,2]
[342184942,1731565842562,-40552.2,0.0001,2]
[342184943,1731565842575,-8079.2500001,0.0001,2]
[342184944,1731565842645,-30591.27883,0.0001,2]
[342184946,1731565842762,-3253.74807022,0.0001,2]
[342184948,1731565842774,-12689.86288478,0.0001,2]
[342184949,1731565842786,-2937.92908718,0.0001,2]
[342184950,1731565842798,-3241.24463752,0.0001,2]
[342184951,1731565842810,-3914.19798693,0.0001,2]
[342184952,1731565842821,-4382.10747062,0.0001,2]
[342184958,1731565846333,-33109.24673911,0.0001,2]
[342184959,1731565846345,-1916.81113664,0.0001,2]
[342184960,1731565846362,-16151.2212375,0.0001,2]
[342184961,1731565846378,-636.24134445,0.0001,2]
[342184970,1731566201264,160.895,0.000135,90]
[342184971,1731566201337,161.27,0.0001404,30]
[342184973,1731566551653,-150.0,7.702e-05,2]
[342184974,1731566552218,-24.81,7.702e-05,2]
[342184975,1731566552240,-125.19,8.219e-05,2]
[342184976,1731566563387,-44.58,8.219e-05,2]
[342184977,1731566563409,-105.42,8.219e-05,2]
[342184980,1731566846935,-150.0,8.219e-05,2]
[342184981,1731566849356,-150.0,8.219e-05,2]
[342184982,1731566850993,-150.0,8.219e-05,2]
[342184983,1731566851732,-150.0,8.219e-05,2]
[342184984,1731566852675,-150.0,8.219e-05,2]
[342184985,1731566853566,-150.0,8.219e-05,2]
[342184986,1731566854632,-150.0,8.219e-05,2]
[342184987,1731566855826,-150.0,8.219e-05,2]
[342184988,1731566856502,-150.0,8.219e-05,2]
[342185002,1731567031601,-173.94,8.219e-05,2]
[342185004,1731567031610,-994.24,8.952e-05,2]
[342185005,1731567031620,-450.0,8.967e-05,2]
[342185006,1731567031629,-250.0,8.984e-05,2]
[342185007,1731567031640,-160.0,8.995e-05,2]
[342185008,1731567031651,-23900.0,9.006e-05,2]
[342185009,1731567031660,-1000.0,9.006e-05,2]
[342185010,1731567031671,-150.0,9.012e-05,2]
[342185011,1731567031681,-165.28,9.013e-05,2]
[342185012,1731567031691,-250.0,9.013e-05,2]
[342185013,1731567031701,-297.7,9.013e-05,2]
[342185014,1731567031711,-672.0,9.032e-05,2]
[342185015,1731567031720,-169.28,9.617e-05,2]
[342185016,1731567031731,-432.72,9.62e-05,2]
[342185017,1731567031740,-1526.45,9.62e-05,2]
[342185018,1731567031750,-4147.27,9.67e-05,2]
[342185019,1731567031760,-675.1697,9.7e-05,2]
[342185020,1731567031769,-2775.85441236,9.7e-05,2]
[342185021,1731567031794,-603.73558764,9.7e-05,2]
[342185022,1731567031803,-1481.0499,9.799e-05,2]
[342185023,1731567031813,-165.36673957,9.799e-05,2]
[342185024,1731567031822,-1.70524034,9.8e-05,2]
[342185025,1731567031833,-2972.20238009,9.8e-05,2]
[342185026,1731567031848,-1049.48765401,9.8e-05,2]
[342185027,1731567031866,-146181.20815355,9.8e-05,2]
[342185028,1731567031876,-781.038,9.898e-05,2]
[342185029,1731567031885,-27824.80970599,9.899e-05,2]
[342185030,1731567031903,-877.93009401,9.899e-05,2]
[342185031,1731567031912,-580.4231,9.899e-05,2]
[342185032,1731567031922,-198.4965,9.899e-05,2]
[342185033,1731567031932,-1000.0,9.899e-05,2]
[342185034,1731567031943,-3317.114,9.899e-05,2]
[342185036,1731567031953,-381.7642,9.9e-05,2]
[342185037,1731567031964,-200.0,9.9e-05,2]
[342185039,1731567031976,-1562.6,9.9e-05,2]
[342185041,1731567031985,-225.28729735,9.9e-05,2]
[342185042,1731567031995,-2045.8848,9.9e-05,2]
[342185043,1731567032004,-393.9213,9.9e-05,2]
[342185044,1731567032014,-255.0,9.913e-05,2]
[342185045,1731567032026,-174.45689328,9.999e-05,2]
[342185046,1731567032038,-10387.12182884,9.999e-05,2]
[342185047,1731567033601,2800.0,0.0002,60]
[342185064,1731567038619,-795.39,9.999e-05,2]
[342185065,1731567038631,-1042.8357821,9.999e-05,2]
[342185066,1731567038643,-502.5,9.999e-05,2]
[342185067,1731567038654,-822.49017547,9.999e-05,2]
[342185068,1731567038690,-2064.04555856,9.999e-05,2]
[342185069,1731567038820,-1105.66021271,9.999e-05,2]
[342185070,1731567038854,-114910.31542035,9.999e-05,2]
[342185071,1731567038863,-27332.08784967,9.999e-05,2]
[342185072,1731567038872,-2163.0,9.999e-05,2]
[342185073,1731567038881,-631.0,0.0001,2]
[342185074,1731567038892,-27700454.71424578,0.0001,2]
[342185075,1731567038905,-15320.021922,0.0001,2]
[342185076,1731567038916,-16913.349525,0.0001,2]
[342185077,1731567038928,-21831.9842399,0.0001,2]
[342185079,1731567039619,-342.01809149,0.0001,2]
[342185080,1731567039631,-44933.377844,0.0001,2]
[342185081,1731567039723,-3420.68354689,0.0001,2]
[342185082,1731567039936,-405.6398245,0.0001,2]
[342185083,1731567039949,-492.03,0.0001,2]
[342185098,1731567042615,-9714.94552327,0.0001,2]
[342185103,1731567042677,-237841.85352226,0.0001,2]
[342185104,1731567042753,-1427.41368854,0.0001,2]
[342185105,1731567042772,-835.19845455,0.0001,2]
[342185109,1731567045943,-256887.66467136,0.0001,2]
[342185110,1731567046000,-8981.6,0.0001,2]
[342185111,1731567046011,-2180.71618016,0.0001,2]
[342185112,1731567046023,-1980.0,0.0001,2]
[342185113,1731567046059,-420.84504072,0.0001,2]
[342185114,1731567046070,-2923.88896204,0.0001,2]
[342185115,1731567046080,-521.76572992,0.0001,2]
[342185116,1731567046091,-8801.962832,0.0001,2]
[342185117,1731567046102,-6441.59999997,0.0001,2]
[342185127,1731567931410,-2105.16,8.219e-05,2]
[342185128,1731567931437,-155.19,8.384e-05,2]
[342185129,1731567931465,-155.19,8.387e-05,2]
[342185130,1731567932441,-155.19,8.389e-05,2]
[342185131,1731567932469,-155.19,8.391e-05,2]
[342185132,1731567932490,-1268.58,8.393e-05,2]
[342185133,1731567932510,-155.19,8.394e-05,2]
[342185134,1731567932532,-155.19,8.396e-05,2]
[342185135,1731567932553,-155.19,8.398e-05,2]
[342185136,1731567932581,-155.19,8.401e-05,2]
[342185137,1731567932602,-155.19,8.403e-05,2]
[342185138,1731567932621,-250.0,8.403e-05,2]
[342185139,1731567932642,-155.19,8.405e-05,2]
[342185140,1731567932662,-497.12,8.406e-05,2]
[342185141,1731567932682,-155.19,8.408e-05,2]
[342185142,1731567932702,-155.19,8.41e-05,2]
[342185143,1731567932721,-155.19,8.412e-05,2]
[342185144,1731567932741,-155.19,8.415e-05,2]
[342185145,1731567932762,-155.19,8.417e-05,2]
[342185146,1731567932782,-1000.0,8.419e-05,2]
[342185147,1731567932802,-155.19,8.419e-05,2]
[342185148,1731567932825,-155.19,8.422e-05,2]
[342185149,1731567932847,-155.19,8.424e-05,2]
[342185150,1731567932868,-155.19,8.426e-05,2]
[342185151,1731567932888,-250.0,8.446e-05,2]
[342185152,1731567932908,-195.3,8.446e-05,2]
[342185153,1731567932929,-165.28,8.446e-05,2]
[342185154,1731567932950,-23900.0,8.461e-05,2]
[342185155,1731567932972,-167.0,8.699e-05,2]
[342185156,1731567932994,-166.4,8.952e-05,2]
[342185157,1731567933015,-1351.89,9.105e-05,2]
[342185158,1731567933036,-1351.89,9.107e-05,2]
[342185159,1731567933060,-1351.89,9.11e-05,2]
[342185160,1731567933082,-1351.89,9.112e-05,2]
[342185161,1731567933103,-1351.89,9.114e-05,2]
[342185162,1731567933124,-1351.89,9.117e-05,2]
[342185163,1731567933144,-1351.89,9.119e-05,2]
[342185164,1731567933166,-1351.89,9.121e-05,2]
[342185165,1731567933186,-441.16202439,9.123e-05,2]
[342185166,1731567933207,-999.18656565,9.124e-05,2]
[342185167,1731567936100,-352.70343435,9.124e-05,2]
[342185168,1731567936122,-1351.89,9.126e-05,2]
[342185169,1731567936143,-1351.89,9.129e-05,2]
[342185170,1731567936165,-1351.89,9.131e-05,2]
[342185171,1731567936186,-1351.89,9.133e-05,2]
[342185172,1731567936209,-1351.89,9.136e-05,2]
[342185173,1731567936235,-1351.89,9.138e-05,2]
[342185174,1731567936257,-150.0,9.14e-05,2]
[342185175,1731567936279,-1351.89,9.14e-05,2]
[342185176,1731567936303,-1351.89,9.143e-05,2]
[342185177,1731567936327,-1351.89,9.145e-05,2]
[342185178,1731567936347,-1351.89,9.148e-05,2]
[342185179,1731567936369,-1351.89,9.15e-05,2]
[342185180,1731567936391,-164.88,9.246e-05,2]
[342185181,1731567936412,-1000.0,9.472e-05,2]
[342185182,1731567936432,-150.0,9.578e-05,2]
[342185183,1731567936453,-150.0,9.601e-05,2]
[342185184,1731567936476,-150.0,9.601e-05,2]
[342185185,1731567936496,-150.99,9.67e-05,2]
[342185186,1731567936518,-1442.08,9.67e-05,2]
[342185187,1731567936541,-20791.511,9.7e-05,2]
[342185188,1731567936560,-3669.0142,9.7e-05,2]
[342185189,1731567936580,-1904.2824,9.7e-05,2]
[342185190,1731567936599,-4252.2754,9.7e-05,2]
[342185191,1731567936619,-34816.50981916,9.7e-05,2]
[342185194,1731568028121,-250.0,9.301e-05,2]
[342185195,1731568028142,-300.0,9.699e-05,2]
[342185196,1731568028166,-3073.07948084,9.7e-05,2]
[342185197,1731568028186,-1797.9768,9.7e-05,2]
[342185198,1731568028206,-1000.0,9.7e-05,2]
[342185199,1731568028225,-500.0,9.799e-05,2]
[342185200,1731568028251,-1809.29,9.8e-05,2]
[342185201,1731568028272,-3178.6936,9.8e-05,2]
[342185202,1731568028297,-1000.0,9.899e-05,2]
[342185203,1731568028321,-150.0,9.899e-05,2]
[342185204,1731568028345,-200.0,9.9e-05,2]
[342185205,1731568028367,-1342.3953,9.9e-05,2]
[342185206,1731568028391,-3899.2832,9.9e-05,2]
[342185207,1731568028416,-30274.8477,9.9e-05,2]
[342185208,1731568028437,-12000.0,9.9e-05,2]
[342185209,1731568028457,-2360.5450137,9.992e-05,2]
[342185210,1731568028476,-1436.0083408,9.992e-05,2]
[342185211,1731568028496,-2551.7502953,9.993e-05,2]
[342185212,1731568028516,-2742.9555768,9.993e-05,2]
[342185213,1731568028536,-2934.1608584,9.993e-05,2]
[342185214,1731568028556,-3125.3661399,9.993e-05,2]
[342185215,1731568028577,-1552.3257072,9.993e-05,2]
[342185216,1731568028598,-1668.6430735,9.993e-05,2]
[342185217,1731568028617,-1784.9604398,9.993e-05,2]
[342185218,1731568028637,-1901.2778061,9.993e-05,2]
[342185219,1731568028660,-150.01,9.999e-05,2]
[342185220,1731568029019,-2164.0,9.999e-05,2]
[342185221,1731568029041,-2594.31933761,9.999e-05,2]
[342185222,1731568029063,-770.0,0.0001,2]
[342185223,1731568029088,-24783.5373012,0.0001,2]
[342185226,1731568047174,-2500.0,9.899e-05,2]
[342185227,1731568047195,-198.90378657,9.999e-05,2]
[342185228,1731568047218,-640.0,0.0001,2]
[342185229,1731568047246,-2890.76551855,0.0001,2]
[342185230,1731568047374,-36732.74423488,0.0001,2]
[342185280,1731568234420,-200.0,9.481e-05,2]
[342185281,1731568234442,-960.72,9.502e-05,2]
[342185282,1731568234452,-5534.94499,9.637e-05,2]
[342185283,1731568234478,-501.83573374,9.637e-05,2]
[342185284,1731568234490,-17863.21927626,9.637e-05,2]
[342185285,1731568234500,-1000.0,9.9e-05,2]
[342185286,1731568234510,-534.3565581,9.992e-05,2]
[342185287,1731568234521,-470.6214847,9.992e-05,2]
[342185288,1731568234531,-286.296755,9.992e-05,2]
[342185289,1731568234541,-574.1037632,9.993e-05,2]
[342185290,1731568234555,-613.8509683,9.993e-05,2]
[342185291,1731568234566,-653.5981734,9.993e-05,2]
[342185292,1731568234576,-693.3453785,9.993e-05,2]
[342185293,1731568234586,-503.4776522,9.993e-05,2]
[342185294,1731568234596,-536.3338198,9.993e-05,2]
[342185295,1731568234605,-569.1899873,9.993e-05,2]
[342185296,1731568234614,-602.0461549,9.993e-05,2]
[342185297,1731568234624,-306.2843978,9.993e-05,2]
[342185298,1731568234634,-326.2720407,9.993e-05,2]
[342185299,1731568234643,-346.2596835,9.993e-05,2]
[342185300,1731568234653,-366.2473264,9.993e-05,2]
[342185301,1731568234663,-150.0,9.999e-05,2]
[342185302,1731568234673,-571.0,0.0001,2]
[342185303,1731568234683,-152323.94391966,0.0001,2]
[342185304,1731568234699,-403.21990552,0.0001,2]
[342185305,1731568234740,-1176.45774606,0.0001,2]
[342185306,1731568234751,-437.5141828,0.0001,2]
[342185307,1731568234763,-300.0,0.0001,2]
[342185308,1731568234775,-51633.99382498,0.0001,2]
[342185580,1731568238142,-166551.11317881,0.0001,2]
[342185583,1731568238167,-27730580.8020955,0.0001,2]
[342185600,1731568238339,-267.555,9.9e-05,2]
[342185783,1731568239956,-732.445,9.9e-05,2]
[342185786,1731568239966,-5839.35579174,0.0001,2]
[342185789,1731568239977,-8306.30805986,0.0001,2]
[342185794,1731568240000,-72782.96376085,0.0001,2]
[342185796,1731568240012,-317.39286237,0.0001,2]
[342185799,1731568240038,-44712.9768203,0.0001,2]
[342185807,1731568240113,-37462.21020373,0.0001,2]
[342185809,1731568240134,-74038.90489505,0.0001,2]
[342185811,1731568240152,-22871.84582379,0.0001,2]
[342185889,1731568242878,-264.44044177,9.999e-05,2]
[342185890,1731568242887,-34926.93659942,0.0001,2]
[342185891,1731568242900,-10748.32360751,0.0001,2]
[342185892,1731568242912,-8851.35746764,0.0001,2]
[342185901,1731568243297,-89516.61972077,0.0001,2]
[342185903,1731568243324,-10982.48093946,0.0001,2]
[342185904,1731568243335,-10925.40654562,0.0001,2]
[342185906,1731568243347,-9097.18657708,0.0001,2]
[342185907,1731568243361,-441.79618957,0.0001,2]
[342185912,1731568246047,-1831.68196511,0.0001,2]
[342185913,1731568246066,-10401.00682633,0.0001,2]
[342185914,1731568246078,-7661.02543081,0.0001,2]
[342185915,1731568246093,-851.65021968,0.0001,2]
[342185916,1731568246104,-1470.09520626,0.0001,2]
[342185917,1731568246115,-2448.1885198,0.0001,2]
[342185918,1731568246127,-307356.09596535,0.0001,2]
[342185919,1731568246175,-12341.84035668,0.0001,2]
[342185920,1731568246187,-5726.94743261,0.0001,2]
[342185922,1731568246203,-3611.22523596,0.0001,2]
[342185923,1731568246477,-224498.91280656,0.0001,2]
[342185924,1731568246488,-769.2914411,0.0001,2]
[342185926,1731568591581,-1999.9,8.219e-05,2]
[342185927,1731568850674,150.0,8.219e-05,2]
[342185928,1731568954071,283.0,0.000171,48]
[342185929,1731568975565,155.75,7.228e-05,2]
[342185932,1731569208748,-384.76843749,9.9e-05,5]
[342185933,1731569243206,631.35,8.219e-05,2]
[342185960,1731569432074,-1450.23,8.219e-05,2]
[342185961,1731569432083,-165.28,8.924e-05,2]
[342185962,1731569432094,-988.37,8.961e-05,2]
[342185963,1731569432103,-78.44,9.013e-05,2]
[342185964,1731569432114,-81.56,9.013e-05,2]
[342185965,1731569432124,-250.0,9.013e-05,2]
[342185966,1731569432134,-1000.0,9.014e-05,2]
[342185967,1731569432144,-220.65,9.038e-05,2]
[342185968,1731569432153,-300.0,9.038e-05,2]
[342185969,1731569432163,-512.8,9.048e-05,2]
[342185970,1731569432172,-387.66,9.083e-05,2]
[342185971,1731569432182,-250.0,9.106e-05,2]
[342185972,1731569432192,-763.15,9.141e-05,2]
[342185973,1731569432203,-763.3,9.141e-05,2]
[342185974,1731569432212,-1469.409293,9.461e-05,2]
[342185975,1731569432221,-167.0,9.509e-05,2]
[342185976,1731569432230,-160.23954983,9.588e-05,2]
[342185977,1731569432243,-410.64045017,9.588e-05,2]
[342185978,1731569432253,-150.99,9.67e-05,2]
[342185979,1731569432263,-601.47,9.67e-05,2]
[342185980,1731569432272,-808.01478557,9.67e-05,2]
[342185981,1731569432284,-191.97521443,9.67e-05,2]
[342185982,1731569432295,-3984.75741018,9.67e-05,2]
[342185983,1731569432308,-959.82258982,9.67e-05,2]
[342185985,1731569432317,-299.99,9.67e-05,2]
[342185986,1731569432326,-150.0,9.699e-05,2]
[342185987,1731569432335,-1000.0,9.7e-05,2]
[342185988,1731569432344,-1538.0,9.7e-05,2]
[342185990,1731569432355,-1133.0,9.7e-05,2]
[342185992,1731569432364,-1210.0,9.7e-05,2]
[342185993,1731569432373,-763.15,9.703e-05,2]
[342185994,1731569432382,-1000.0,9.8e-05,2]
[342185996,1731569432392,-1973.9197,9.892e-05,2]
[342185998,1731569432401,-1000.0,9.899e-05,2]
[342185999,1731569432410,-654.943,9.899e-05,2]
[342186001,1731569432420,-200.0,9.9e-05,2]
[342186003,1731569432429,-1630.02368818,9.9e-05,2]
[342186005,1731569432454,-8433.76477572,9.9e-05,2]
[342186006,1731569432465,-585.06991107,9.9e-05,2]
[342186007,1731569432476,-4632.20682503,9.9e-05,2]
[342186008,1731569432485,-5834.2756,9.9e-05,2]
[342186009,1731569432495,-42122.8779,9.9e-05,2]
[342186010,1731569432505,-1000.0,9.9e-05,2]
[342186011,1731569432514,-654.79283044,9.9e-05,2]
[342186012,1731569432524,-654.79283043,9.9e-05,2]
[342186013,1731569432532,-502.11901539,9.973e-05,2]
[342186014,1731569432543,-503.94101987,9.973e-05,2]
[342186015,1731569432554,-634.90232269,9.992e-05,2]
[342186016,1731569432564,-386.2349692,9.992e-05,2]
[342186017,1731569432573,-36353.74398912,9.999e-05,2]
[342186018,1731569432612,-5.9493139,9.999e-05,2]
[342186027,1731569437961,-250.0,8.856e-05,2]
[342186028,1731569437971,-35832.72669698,9.999e-05,2]
[342186030,1731569437981,-200.6204452,9.999e-05,3]
[342186031,1731569437992,-184850.12947873,9.999e-05,2]
[342186032,1731569438002,-41673.62981565,9.999e-05,2]
[342186033,1731569438012,-8254.99852149,9.999e-05,2]
[342186034,1731569438022,-577.0,0.0001,2]
[342186035,1731569438031,-22938910.65928097,0.0001,2]
[342186036,1731569438040,-15797.09445,0.0001,2]
[342186037,1731569438050,-4619144.25882678,0.0001,2]
[342186038,1731569438311,-328.789202,0.0001,2]
[342186039,1731569438323,-3604.485582,0.0001,2]
[342186040,1731569438334,-8492.53548818,0.0001,2]
[342186110,1731569439999,-912.83,0.0001,2]
[342186111,1731569440176,-441.1323289,0.0001,2]
[342186112,1731569440188,-956.11549189,0.0001,2]
[342186113,1731569440199,-986.46725647,0.0001,2]
[342186114,1731569440212,-4619.65000009,0.0001,2]
[342186119,1731569443145,-645.2658,9.899e-05,2]
[342186120,1731569443154,-4826.2171741,0.0001,2]
[342186121,1731569443186,-1059.08457389,0.0001,2]
[342186122,1731569443198,-6821.88609613,0.0001,2]
[342186123,1731569443209,-2475.11019161,0.0001,2]
[342186124,1731569443225,-2099.6640223,0.0001,2]
[342186125,1731569443236,-2826.17703243,0.0001,2]
[342186148,1731569447640,-4472.044988,0.0001,2]
[342186149,1731569447654,-12153.93631577,0.0001,2]
[342186150,1731569447673,-96257.01960931,0.0001,2]
[342186151,1731569447689,-9008.93186283,0.0001,2]
[342186152,1731569447703,-786.0,0.0001,2]
[342186153,1731569447729,-1000.0,0.0001,2]
[342186155,1731570027188,800.0,0.000217,120]
[342186156,1731570050576,900.0,0.000217,120]
[342186164,1731570632198,-1977.5,8.219e-05,2]
[342186165,1731570632208,-300.0,9.318e-05,2]
[342186166,1731570632217,-250.0,9.319e-05,2]
[342186167,1731570632227,-174.52117537,9.319e-05,2]
[342186168,1731570632238,-374.94379054,9.319e-05,2]
[342186169,1731570632283,-2334.45599337,9.319e-05,2]
[342186170,1731570632367,-561.75930824,9.319e-05,2]
[342186171,1731570632379,-20454.31973248,9.319e-05,2]
[342186172,1731570632389,-256.4,9.327e-05,2]
[342186173,1731570632402,-456.71,9.357e-05,2]
[342186174,1731570632411,-1000.0,9.362e-05,2]
[342186175,1731570632421,-279.29,9.443e-05,2]
[342186176,1731570632430,-250.0,9.474e-05,2]
[342186177,1731570632439,-150.0,9.726e-05,2]
[342186178,1731570632449,-763.15,9.752e-05,2]
[342186179,1731570632458,-2814.665,9.9e-05,2]
[342186180,1731570632468,-500.0,9.981e-05,2]
[342186181,1731570632478,-497.0,9.981e-05,2]
[342186182,1731570632488,-733.09258391,9.992e-05,2]
[342186183,1731570632497,-7817.31737,9.992e-05,2]
[342186184,1731570632507,-2602.8951071,9.992e-05,2]